bitfinex-derivatives/quotes_SOLF0:USTF0_20241218
["timestamp","ask_amount","ask_price","bid_price","bid_amount"]
[1734518674215,1.94,217.24,217.21,2.3022]
[1734518674618,1.94,217.24,217.2,7.19672994]
[1734518674918,4.2419,217.24,217.21,4.75294524]
[1734518675117,4.2419,217.24,217.22,4.75294524]
[1734518675326,4.2419,217.24,217.21,2.3022]
[1734518676022,1.94,217.24,217.22,4.75230567]
[1734518676227,1.94,217.24,217.21,2.3022]
[1734518676628,1.94,217.24,217.22,4.75167476]
[1734518676828,1.94,217.24,217.21,2.3022]
[1734518677324,1.94,217.24,217.22,4.75167476]
[1734518677525,1.94,217.24,217.22,2.302]
[1734518678627,52.68,217.31,217.22,7.19672994]
[1734518678821,4.2413,217.3,217.26,2.3016]
[1734518679527,7.19672994,217.32,217.26,7.19672994]
[1734518679827,1.94,217.31,217.26,7.19672994]
[1734518680021,1.94,217.3,217.26,7.19672994]
[1734518680225,2.3006,217.36,217.29,7.19672994]
[1734518680425,1.94,217.33,217.29,7.19672994]
[1734518680626,1.94,217.33,217.23,3.0134]
[1734518680821,1.94,217.33,217.3,2.3012]
[1734518681424,1.94,217.33,217.31,2.3011]
[1734518682724,56.24429504,217.41,217.31,2.3011]
[1734518682931,7.19672994,217.35,217.31,2.3011]
[1734518683129,1.94,217.34,217.31,2.3011]
[1734518685035,1.94,217.34,217.23,3.0134]
[1734518685335,9.13672994,217.34,217.28,7.19672994]
[1734518685628,7.19672994,217.32,217.28,2.3014]
[1734518686333,1.94,217.34,217.28,2.3014]
[1734518686533,2.3011,217.32,217.28,2.3014]
[1734518688034,9.49782994,217.32,217.28,2.3014]
[1734518688531,2.3011,217.32,217.28,2.3014]
[1734518690331,7.19672994,217.33,217.26,5.57872038]
[1734518690536,2.3012,217.31,217.27,2.3016]
[1734518690739,1.94,217.3,217.27,2.3016]
[1734518697548,1.94,217.3,217.29,2.3014]
[1734518698348,1.98,217.32,217.3,2.3013]
[1734518700448,1.98,217.32,217.31,2.3012]
[1734518701447,1.98,217.36,217.3,7.19672994]
[1734518701649,1.98,217.36,217.27,1.58]
[1734518701851,1.98,217.36,217.32,7.19672994]
[1734518703246,1.98,217.36,217.27,1.58]
[1734518703452,7.19672994,217.35,217.28,11.92439832]
[1734518703646,7.19672994,217.35,217.29,4.72766838]
[1734518703842,9.49752994,217.35,217.31,2.3012]
[1734518704248,2.3008,217.35,217.28,7.19672994]
[1734518704449,2.3008,217.35,217.32,2.301]
[1734518704949,1.98,217.34,217.32,2.301]
[1734518705353,4.2809,217.34,217.27,1.58]
[1734518705652,4.2809,217.34,217.28,4.72902642]
[1734518705850,9.17672994,217.34,217.28,4.72902642]
[1734518706047,9.17672994,217.34,217.27,1.58]
[1734518706447,9.49782994,217.32,217.27,1.58]
[1734518707445,2.3011,217.32,217.29,2.3014]
[1734518708747,2.3005,217.38,217.31,2.3011]
[1734518708952,9.17672994,217.37,217.29,7.19672994]
[1734518709152,1.98,217.36,217.27,1.58]
[1734518709348,1.98,217.36,217.29,7.19672994]
[1734518709549,1.98,217.36,217.31,2.3011]
[1734518709550,2.3008,217.35,217.31,2.3011]
[1734518710457,9.49752994,217.35,217.31,2.3011]
[1734518710754,2.3008,217.34,217.31,2.3011]
[1734518711852,7.19672994,217.33,217.26,12.77545032]
[1734518712046,1.98,217.32,217.26,12.77545032]
[1734518712456,1.98,217.32,217.29,2.3013]
[1734518714052,7.19672994,217.31,217.26,2.3017]
[1734518714353,7.19672994,217.31,217.24,7.19672994]
[1734518714560,2.3015,217.28,217.25,4.74076218]
[1734518714759,4.2815,217.28,217.23,3.0134]
[1734518715057,4.2815,217.28,217.24,4.74089522]
[1734518715255,4.2815,217.28,217.25,4.74089522]
[1734518715461,2.3016,217.27,217.23,3.0134]
[1734518715651,2.3016,217.27,217.24,4.741887]
[1734518715855,2.3016,217.27,217.25,4.741887]
[1734518716357,2.3016,217.27,217.24,2.3018]
[1734518716748,2.3016,217.27,217.25,4.74298326]
[1734518716955,2.3016,217.27,217.24,2.3018]
[1734518717456,2.3016,217.27,217.25,4.74378019]
[1734518717653,2.3016,217.27,217.24,2.3018]
[1734518718157,59.36897969,217.39,217.26,7.19672994]
[1734518718453,7.19672994,217.34,217.27,4.74413892]
[1734518718653,1.98,217.33,217.27,4.74413892]
[1734518718959,1.98,217.33,217.28,4.74413892]
[1734518719260,7.19672994,217.32,217.29,4.74413892]
[1734518719560,9.49782994,217.32,217.28,2.3014]
[1734518719959,9.49782994,217.32,217.29,4.74604708]
[1734518720354,9.49782994,217.32,217.28,2.3014]
[1734518720659,9.49782994,217.32,217.29,4.74741841]
[1734518721060,9.49782994,217.32,217.28,2.3014]
[1734518721559,9.49782994,217.32,217.29,4.74919462]
[1734518721859,9.49782994,217.32,217.3,4.74919462]
[1734518722256,9.49782994,217.32,217.28,2.3014]
[1734518722760,9.49782994,217.32,217.29,4.75129332]
[1734518722959,2.3011,217.32,217.29,7.05269332]
[1734518723262,2.3011,217.32,217.3,4.75129332]
[1734518723459,2.3011,217.32,217.31,4.75129332]
[1734518724557,11.47772994,217.33,217.31,4.75129332]
[1734518724960,11.47772994,217.33,217.32,4.75129332]
[1734518726262,4.281,217.33,217.32,4.75129332]
[1734518728063,1.98,217.33,217.32,4.75129332]
[1734518733165,1.98,217.33,217.31,2.3011]
[1734518733761,1.98,217.33,217.32,4.75427259]
[1734518734362,1.98,217.33,217.31,2.3011]
[1734518738069,1.98,217.33,217.32,4.75416514]
[1734518743073,9.17672994,217.33,217.25,7.19672994]
[1734518743471,2.3011,217.32,217.28,2.3014]
[1734518743666,2.3011,217.32,217.29,4.72817341]
[1734518743974,2.3011,217.32,217.3,4.72817341]
[1734518744167,2.3011,217.32,217.29,2.3014]
[1734518744673,2.3011,217.32,217.3,4.72827681]
[1734518745070,2.3011,217.32,217.29,2.3014]
[1734518745577,2.3011,217.32,217.23,3.0134]
[1734518745578,9.49792994,217.31,217.27,2.3015]
[1734518745766,9.49792994,217.31,217.28,4.72833078]
[1734518745965,2.3014,217.29,217.26,2.3016]
[1734518746169,1.98,217.28,217.23,3.0134]
[1734518746472,1.98,217.28,217.27,4.72947729]
[1734518747478,4.2815,217.28,217.27,4.72947729]
[1734518750174,4.2815,217.28,217.25,2.3018]
[1734518750376,4.2815,217.28,217.26,4.72843866]
[1734518750675,4.2815,217.28,217.25,2.3018]
[1734518750873,4.2815,217.28,217.26,4.72815841]
[1734518751178,4.2815,217.28,217.25,2.3018]
[1734518751574,4.2815,217.28,217.26,4.72797212]
[1734518751777,4.2815,217.28,217.25,2.3018]
[1734518752074,4.2815,217.28,217.24,2.3019]
[1734518752075,2.3016,217.27,217.24,2.3019]
[1734518752272,1.98,217.28,217.25,4.72844825]
[1734518752472,7.19672994,217.27,217.25,4.72844825]
[1734518752778,7.19672994,217.27,217.18,1.6016]
[1734518752975,7.19672994,217.23,217.18,1.6016]
[1734518753179,1.98,217.22,217.18,1.6016]
[1734518753777,4.2822,217.22,217.18,3.9041]
[1734518754179,4.2822,217.22,217.18,2.3025]
[1734518754380,1.98,217.22,217.16,8.64692994]
[1734518754579,2.3023,217.21,217.17,2.3026]
[1734518755678,2.3025,217.19,217.16,3.7529]
[1734518755879,1.98,217.18,217.16,3.7529]
[1734518756279,1.98,217.18,217.16,1.4502]
[1734518757275,1.98,217.18,217.15,2.3028]
[1734518757685,1.98,217.18,217.15,9.49952994]
[1734518758582,1.98,217.18,217.13,2.303]
[1734518758583,2.3028,217.16,217.13,2.303]
[1734518758781,2.3028,217.16,217.11,1.5272]
[1734518758979,2.3028,217.16,217.12,7.19672994]
[1734518759185,2.3028,217.16,217.12,9.49982994]
[1734518761379,2.3029,217.15,217.11,3.8305]
[1734518761577,7.19672994,217.17,217.11,1.5272]
[1734518761578,1.96,217.14,217.11,1.5272]
[1734518763085,1.96,217.14,217.12,7.19672994]
[1734518763387,1.96,217.17,217.12,7.19672994]
[1734518763582,1.96,217.18,217.16,7.19672994]
[1734518763787,1.96,217.19,217.17,2.3025]
[1734518765590,1.96,217.19,217.18,2.3025]
[1734518766694,1.96,217.19,217.16,7.19672994]
[1734518766894,1.96,217.19,217.17,2.3026]
[1734518769696,1.96,217.19,217.18,2.3025]
[1734518772498,1.96,217.19,217.17,2.3026]
[1734518773098,1.96,217.19,217.14,7.19672994]
[1734518773292,1.96,217.19,217.18,2.3025]
[1734518780310,1.96,217.23,217.21,2.3021]
[1734518780507,1.96,217.23,217.18,7.19672994]
[1734518781406,1.96,217.23,217.21,2.3022]
[1734518782801,1.96,217.23,217.18,7.19672994]
[1734518783003,1.96,217.26,217.2,7.19672994]
[1734518783208,7.19672994,217.25,217.18,7.19672994]
[1734518783404,7.19672994,217.25,217.14,1.96]
[1734518783706,7.19672994,217.23,217.16,7.19672994]
[1734518783913,7.19672994,217.21,217.13,1.4912]
[1734518784212,1.96,217.2,217.15,2.3028]
[1734518784414,1.96,217.2,217.14,4.70579788]
[1734518784605,9.15672994,217.2,217.13,8.68792994]
[1734518784810,2.3025,217.19,217.15,2.3028]
[1734518785509,2.3025,217.19,217.13,8.68792994]
[1734518785701,2.3025,217.19,217.16,2.3027]
[1734518786709,1.96,217.2,217.13,8.68792994]
[1734518786910,1.96,217.2,217.18,2.3025]
[1734518790214,9.49882994,217.22,217.19,2.3024]
[1734518790815,1.98,217.23,217.21,2.3022]
[1734518794717,1.98,217.26,217.22,7.19672994]
[1734518794915,1.98,217.27,217.2,7.19672994]
[1734518795316,1.98,217.27,217.23,2.3019]
[1734518796420,4.2816,217.27,217.23,2.3019]
[1734518797217,4.2816,217.27,217.24,4.72403029]
[1734518797417,4.2816,217.27,217.23,2.3019]
[1734518797919,4.2816,217.27,217.24,4.72442113]
[1734518798121,4.2816,217.27,217.23,2.3019]
[1734518798421,4.2816,217.27,217.24,4.7234078]
[1734518798723,4.2816,217.27,217.25,4.7234078]
[1734518799019,4.2816,217.27,217.23,2.3019]
[1734518799225,4.2816,217.27,217.24,4.72275231]
[1734518799415,4.2816,217.27,217.25,4.72275231]
[1734518799618,4.2816,217.27,217.23,2.3019]
[1734518800022,4.2816,217.27,217.24,4.72174824]
[1734518800322,4.2816,217.27,217.25,4.72174824]
[1734518800620,2.3017,217.26,217.25,4.72174824]
[1734518800820,2.3017,217.26,217.22,2.3021]
[1734518801020,2.3017,217.26,217.23,4.72064579]
[1734518801221,2.3017,217.26,217.24,4.72064579]
[1734518801619,4.2817,217.26,217.22,2.3021]
[1734518801921,9.17672994,217.26,217.23,4.72005653]
[1734518802120,1.98,217.26,217.23,4.72005653]
[1734518802325,7.19672994,217.25,217.19,7.19672994]
[1734518802525,7.19672994,217.25,217.15,1.98]
[1734518802732,7.19672994,217.23,217.2,4.72128256]
[1734518802930,1.98,217.22,217.16,4.72128256]
[1734518803222,1.98,217.22,217.17,4.72128256]
[1734518803423,2.3022,217.21,217.17,7.02388256]
[1734518803636,2.3022,217.21,217.18,4.72128256]
[1734518803929,2.3022,217.21,217.19,4.72128256]
[1734518804119,2.3022,217.21,217.17,2.3026]
[1734518804324,2.3022,217.21,217.18,4.7227878]
[1734518804526,9.17672994,217.22,217.19,4.7227878]
[1734518804725,9.17672994,217.22,217.15,9.49952994]
[1734518805134,9.17672994,217.22,217.16,4.72320236]
[1734518805427,2.3024,217.2,217.16,4.72320236]
[1734518805628,2.3024,217.2,217.17,4.72320236]
[1734518805827,2.3024,217.2,217.18,4.72320236]
[1734518806024,2.3024,217.19,217.18,4.72320236]
[1734518809728,2.3024,217.19,217.18,4.72527343]
[1734518813734,9.17672994,217.22,217.18,4.72527343]
[1734518814835,1.98,217.22,217.19,4.72527343]
[1734518815032,9.17672994,217.22,217.16,7.19672994]
[1734518815237,9.17672994,217.22,217.17,4.72647413]
[1734518815430,2.3023,217.2,217.17,4.72647413]
[1734518815631,2.3023,217.2,217.18,4.72647413]
[1734518815932,2.3023,217.2,217.19,4.72647413]
[1734518816535,4.2823,217.2,217.19,4.72647413]
[1734518817640,4.2823,217.2,217.17,2.3026]
[1734518817941,1.98,217.2,217.19,2.3024]
[1734518818136,1.98,217.2,217.19,7.02849247]
[1734518820137,1.4921,217.31,217.23,2.302]
[1734518820337,7.19672994,217.27,217.23,2.302]
[1734518820536,1.96,217.26,217.19,7.19672994]
[1734518820833,7.19672994,217.25,217.19,2.3024]
[1734518821039,7.19672994,217.25,217.2,4.72471846]
[1734518821240,2.3022,217.22,217.2,4.72471846]
[1734518821542,1.96,217.21,217.18,2.3025]
[1734518822035,1.96,217.21,217.19,4.72464761]
[1734518822443,1.96,217.21,217.2,4.72464761]
[1734518824142,1.96,217.21,217.2,2.3023]
[1734518824338,1.96,217.21,217.2,7.02741761]
[1734518826943,1.96,217.27,217.2,4.72511761]
[1734518827142,7.19672994,217.29,217.22,7.19672994]
[1734518827347,1.96,217.28,217.23,4.72511761]
[1734518827743,1.96,217.28,217.24,4.72511761]
[1734518828048,4.2615,217.28,217.25,4.72511761]
[1734518828247,1.4997,217.37,217.26,7.19672994]
[1734518828449,7.19672994,217.34,217.21,1.96]
[1734518828747,7.19672994,217.32,217.27,4.72013532]
[1734518828946,7.19672994,217.32,217.26,2.3016]
[1734518828947,1.96,217.31,217.26,2.3016]
[1734518829243,2.3013,217.3,217.27,11.91541963]
[1734518829447,1.96,217.3,217.27,7.19672994]
[1734518830148,1.96,217.3,217.28,2.3014]
[1734518830643,1.96,217.34,217.3,2.3012]
[1734518831550,1.96,217.35,217.31,2.3011]
[1734518832349,1.96,217.35,217.31,7.19672994]
[1734518833454,1.96,217.35,217.32,7.0140362]
[1734518833651,1.96,217.35,217.32,2.301]
[1734518834549,1.96,217.35,217.31,7.19672994]
[1734518834753,1.96,217.35,217.32,2.301]
[1734518834952,2.3005,217.37,217.32,2.301]
[1734518835257,2.3005,217.37,217.26,3.1233]
[1734518835258,1.96,217.37,217.34,2.3008]
[1734518835465,1.96,217.37,217.32,7.19672994]
[1734518836258,10.28303681,217.45,217.33,2.3009]
[1734518836259,2.3002,217.41,217.33,2.3009]
[1734518836465,7.19672994,217.39,217.33,2.3009]
[1734518836662,1.96,217.38,217.33,2.3009]
[1734518838161,4.2605,217.38,217.34,2.3008]
[1734518839358,65.4750575,217.47,217.34,7.19672994]
[1734518839567,2.9912,217.52,217.41,7.19672994]
[1734518839862,1.96,217.55,217.38,1.96]
[1734518840062,1.96,217.55,217.41,7.19672994]
[1734518840269,7.19672994,217.48,217.41,7.19672994]
[1734518840469,7.19672994,217.48,217.41,2.3]
[1734518840766,4.4592,217.5,217.41,7.19672994]
[1734518840967,7.19672994,217.49,217.39,1.4995]
[1734518841164,7.19672994,217.47,217.4,11.87735319]
[1734518841359,7.19672994,217.43,217.35,3.1646]
[1734518841559,9.35672994,217.43,217.35,10.36132994]
[1734518841770,7.19672994,217.41,217.35,3.1646]
[1734518842167,7.19672994,217.37,217.32,5.55805826]
[1734518842372,7.19672994,217.37,217.29,7.19672994]
[1734518842373,9.35672994,217.37,217.29,7.19672994]
[1734518842668,9.49772994,217.33,217.29,5.544668]
[1734518842869,9.49772994,217.33,217.27,2.3016]
[1734518843073,82.33515454,217.48,217.25,4.5956]
[1734518843074,7.19672994,217.31,217.25,4.5956]
[1734518843271,2.16,217.32,217.18,2.16]
[1734518843272,7.19672994,217.29,217.18,2.16]
[1734518843572,7.19672994,217.25,217.19,7.19672994]
[1734518843868,7.19672994,217.25,217.18,5.63304685]
[1734518843869,2.16,217.25,217.18,5.63304685]
[1734518844271,9.35672994,217.25,217.19,4.69501654]
[1734518844472,9.35672994,217.25,217.17,7.19672994]
[1734518844973,9.35672994,217.25,217.19,7.19672994]
[1734518844974,2.16,217.25,217.19,7.19672994]
[1734518845770,4.4618,217.25,217.19,7.19672994]
[1734518846580,2.16,217.25,217.19,7.19672994]
[1734518847271,2.16,217.25,217.22,7.19672994]
[1734518848168,9.49812994,217.29,217.22,7.19672994]
[1734518848377,5.51318304,217.4,217.28,7.19672994]
[1734518848378,2.16,217.33,217.28,7.19672994]
[1734518848675,2.16,217.34,217.28,7.19672994]
[1734518848867,4.4608,217.34,217.28,7.19672994]
[1734518849266,2.16,217.34,217.28,7.19672994]
[1734518849476,2.16,217.34,217.29,2.3013]
[1734518849777,9.49742994,217.36,217.29,2.3013]
[1734518849980,2.16,217.35,217.29,2.3013]
[1734518850167,2.16,217.35,217.3,9.49792994]
[1734518850374,2.16,217.35,217.28,11.18611641]
[1734518851273,2.16,217.35,217.31,2.3011]
[1734518851972,2.3005,217.37,217.31,2.3011]
[1734518852172,2.16,217.36,217.31,2.3011]
[1734518852968,2.16,217.36,217.32,2.301]
[1734518853172,2.16,217.36,217.29,3.1194]
[1734518853574,192.63976299,217.56,217.31,11.18611641]
[1734518853869,11.18611641,217.46,217.34,11.18611641]
[1734518854873,5.63551568,217.46,217.34,11.18611641]
[1734518855581,2.3,217.43,217.34,11.18611641]
[1734518855775,5.63551568,217.46,217.34,11.18611641]
[1734518855776,2.16,217.42,217.34,11.18611641]
[1734518857479,2.16,217.42,217.37,2.3004]
[1734518857680,2.16,217.42,217.34,11.18611641]
[1734518858271,2.16,217.42,217.39,2.3003]
[1734518860082,2.16,217.42,217.37,11.18611641]
[1734518860274,2.2997,217.45,217.4,2.3002]
[1734518860581,2.16,217.44,217.4,2.3002]
[1734518860980,4.4598,217.44,217.4,2.3002]
[1734518863085,2.16,217.44,217.4,2.3002]
[1734518863384,2.16,217.45,217.37,11.18611641]
[1734518863982,2.16,217.45,217.38,1.5645]
[1734518864277,2.16,217.45,217.44,2.2998]
[1734518864876,67.63135454,217.48,217.46,2.2995]
[1734518865480,65.47135454,217.48,217.46,2.2995]
[1734518865680,2.16,217.49,217.46,2.2995]
[1734518867777,2.16,217.49,217.45,2.2997]
[1734518868278,2.16,217.48,217.45,2.2997]
[1734518868886,2.16,217.48,217.46,2.2995]
[1734518870384,2.2995,217.47,217.43,2.2998]
[1734518873485,2.2996,217.46,217.43,2.2998]
[1734518873686,2.2996,217.46,217.42,7.15255329]
[1734518873687,2.16,217.48,217.42,7.15255329]
[1734518874591,2.2995,217.47,217.42,7.15255329]
[1734518874784,2.16,217.48,217.42,7.15255329]
[1734518876888,2.16,217.48,217.44,9.45225329]
[1734518877187,2.16,217.48,217.42,7.15255329]
[1734518878486,2.2995,217.47,217.43,2.2999]
[1734518881690,2.2996,217.46,217.42,9.45255329]
[1734518882089,2.2996,217.46,217.42,2.3]
[1734518884791,2.2996,217.46,217.41,7.15255329]
[1734518884994,2.2996,217.46,217.42,2.3]
[1734518885696,2.2997,217.45,217.42,2.3]
[1734518887590,7.15255329,217.45,217.38,1.5645]
[1734518887791,7.15255329,217.43,217.36,7.15255329]
[1734518887987,2.16,217.42,217.36,7.15255329]
[1734518888395,2.3002,217.41,217.38,2.3004]
[1734518889694,2.3003,217.4,217.37,2.3005]
[1734518889900,7.15255329,217.41,217.3,1.539]
[1734518890198,2.3004,217.39,217.36,7.15255329]
[1734518890896,2.3004,217.38,217.36,7.15255329]
[1734518892201,7.15255329,217.37,217.3,7.15255329]
[1734518892603,2.3009,217.34,217.3,9.45375329]
[1734518892795,2.16,217.33,217.3,9.45375329]
[1734518894101,4.461,217.33,217.3,9.45375329]
[1734518895800,4.461,217.33,217.32,7.15255329]
[1734518895801,2.16,217.33,217.32,7.15255329]
[1734518896101,2.16,217.34,217.32,7.15255329]
[1734518896402,2.16,217.37,217.32,7.15255329]
[1734518896703,2.16,217.37,217.28,1.5216]
[1734518896899,4.4605,217.37,217.34,7.15255329]
[1734518899102,4.4605,217.37,217.34,9.45335329]
[1734518899904,4.4605,217.37,217.34,2.3008]
[1734518900305,4.4605,217.37,217.35,7.15255329]
[1734518900700,2.16,217.37,217.35,7.15255329]
[1734518902901,2.16,217.37,217.34,2.3008]
[1734518904406,2.16,217.37,217.35,2.3007]
[1734518907408,2.16,217.37,217.36,2.3006]
[1734518911406,2.3004,217.39,217.36,2.3006]
[1734518911607,2.12,217.38,217.36,2.3006]
[1734518914411,2.12,217.38,217.35,7.15255329]
[1734518914609,2.12,217.4,217.35,7.15255329]
[1734518915912,2.12,217.4,217.33,7.15255329]
[1734518916116,7.15255329,217.39,217.28,1.5216]
[1734518916303,2.3005,217.37,217.34,2.3008]
[1734518916507,2.12,217.36,217.34,2.3008]
[1734518920319,2.12,217.36,217.34,9.45335329]
[1734518920916,4.4206,217.36,217.34,2.3008]
[1734518921114,2.12,217.36,217.34,2.3008]
[1734518921415,2.301,217.33,217.29,7.15255329]
[1734518921917,2.301,217.33,217.3,2.3012]
[1734518921918,2.12,217.32,217.3,2.3012]
[1734518922719,2.12,217.32,217.27,8.67135329]
[1734518923513,2.3013,217.3,217.27,10.97295329]
[1734518924623,2.3013,217.3,217.27,9.45415329]
[1734518926223,2.3012,217.31,217.27,9.45415329]
[1734518927124,2.3015,217.28,217.21,2.9856]
[1734518927318,2.3015,217.28,217.23,7.15255329]
[1734518927319,2.12,217.27,217.23,7.15255329]
[1734518928117,2.12,217.27,217.24,2.3019]
[1734518933725,4.4216,217.27,217.24,2.3019]
[1734518934330,2.12,217.27,217.22,7.15255329]
[1734518934829,2.3018,217.26,217.23,2.302]
[1734518936935,2.12,217.27,217.22,7.15255329]
[1734518937122,2.12,217.27,217.25,2.3018]
[1734518937327,5.6062709,217.33,217.26,7.15255329]
[1734518937530,2.08,217.32,217.26,7.15255329]
[1734518937832,2.08,217.32,217.27,2.3015]
[1734518939431,2.3013,217.3,217.27,2.3015]
[1734518940035,4.3811,217.32,217.28,2.3014]
[1734518940430,2.08,217.32,217.28,2.3014]
[1734518941333,4.3812,217.31,217.27,2.3015]
[1734518942033,2.3013,217.3,217.27,2.3015]
[1734518943035,2.08,217.31,217.26,7.15255329]
[1734518943233,2.08,217.31,217.3,2.3013]
[1734518943429,2.08,217.31,217.26,7.15255329]
[1734518944639,2.08,217.31,217.27,2.3015]
[1734518945533,2.3013,217.3,217.27,2.3015]
[1734518945839,2.3013,217.3,217.19,5.54131251]
[1734518945840,7.15255329,217.3,217.19,5.54131251]
[1734518946140,2.08,217.31,217.21,7.15255329]
[1734518946339,7.15255329,217.28,217.22,2.302]
[1734518946536,2.3017,217.26,217.22,2.302]
[1734518950440,2.08,217.27,217.25,7.15255329]
[1734518950940,2.08,217.3,217.25,7.15255329]
[1734518951441,4.3813,217.3,217.26,2.3016]
[1734518951631,4.3813,217.3,217.25,7.15255329]
[1734518952338,2.08,217.3,217.25,7.15255329]
[1734518952641,2.08,217.3,217.28,2.3015]
[1734518953441,4.3813,217.3,217.27,2.3015]
[1734518954543,11.53385329,217.3,217.27,2.3015]
[1734518955244,4.3813,217.3,217.27,2.3015]
[1734518958744,2.08,217.3,217.28,2.3014]
[1734518959444,75.32040469,217.37,217.28,7.15255329]
[1734518959647,2.08,217.36,217.33,2.3009]
[1734518959847,2.08,217.35,217.33,2.3009]
[1734518961149,52.66,217.44,217.34,7.15255329]
[1734518961346,7.15255329,217.41,217.34,7.15255329]
[1734518961751,9.45245329,217.43,217.39,2.3003]
[1734518961946,2.06,217.42,217.39,2.3003]
[1734518963947,9.45275329,217.41,217.36,2.3006]
[1734518964149,7.15255329,217.41,217.33,7.15255329]
[1734518964348,7.15255329,217.39,217.33,7.15255329]
[1734518964548,2.06,217.38,217.33,7.15255329]
[1734518965448,2.06,217.38,217.35,2.3007]
[1734518965849,2.06,217.38,217.33,7.15255329]
[1734518966048,2.3006,217.36,217.32,2.301]
[1734518966351,7.15255329,217.37,217.32,2.301]
[1734518967450,9.45305329,217.37,217.32,2.301]
[1734518970360,2.06,217.38,217.31,7.15255329]
[1734518970556,2.06,217.38,217.34,2.3008]
[1734518970753,2.06,217.38,217.35,7.15255329]
[1734518970964,7.15255329,217.41,217.35,7.15255329]
[1734518971149,2.06,217.4,217.35,7.15255329]
[1734518971353,2.06,217.4,217.36,2.3006]
[1734518971354,4.3603,217.4,217.36,2.3006]
[1734518972449,2.06,217.4,217.37,2.3005]
[1734518972656,2.06,217.4,217.35,7.15255329]
[1734518973052,2.06,217.4,217.38,2.3003]
[1734518973849,2.3,217.42,217.38,2.3003]
[1734518974052,4.36,217.42,217.38,2.3003]
[1734518974852,11.51255329,217.42,217.38,2.3003]
[1734518975451,11.51255329,217.42,217.37,2.3005]
[1734518975756,11.51255329,217.42,217.35,7.15255329]
[1734518976157,11.51255329,217.42,217.38,2.3003]
[1734518979159,9.21255329,217.42,217.38,2.3003]
[1734518979355,2.3001,217.41,217.38,2.3003]
[1734518981153,4.36,217.42,217.39,2.3003]
[1734518981359,2.06,217.42,217.37,7.15255329]
[1734518982461,2.06,217.42,217.4,2.3002]
[1734518983160,2.06,217.42,217.41,2.3001]
[1734518984563,2.06,217.45,217.42,2.2999]
[1734518985466,2.06,217.45,217.35,5.61868529]
[1734518985467,2.06,217.45,217.44,2.2998]
[1734518986663,9.45185329,217.49,217.46,2.2995]
[1734518986854,11.51185329,217.49,217.46,2.2995]
[1734518987765,9.45185329,217.49,217.46,2.2995]
[1734518987961,11.51185329,217.49,217.46,2.2995]
[1734518988764,11.51185329,217.49,217.48,2.2994]
[1734518988765,2.06,217.49,217.48,2.2994]
[1734518989565,2.06,217.5,217.48,2.2994]
[1734518990369,9.45165329,217.51,217.48,2.2994]
[1734518990568,2.06,217.5,217.48,2.2994]
[1734518992566,9.21255329,217.5,217.43,3.0536]
[1734518992773,9.21255329,217.5,217.43,10.20615329]
[1734518994471,2.2994,217.48,217.45,7.15255329]
[1734518995565,2.2994,217.48,217.45,9.45225329]
[1734518995869,2.2993,217.49,217.45,7.15255329]
[1734518996068,2.2993,217.49,217.45,9.45225329]
[1734518997263,2.2994,217.48,217.45,2.2997]
[1734518999273,2.2994,217.48,217.43,7.15255329]
[1734519000370,2.2994,217.48,217.45,2.2997]
[1734519001671,2.2994,217.48,217.43,7.15255329]
[1734519001672,7.15255329,217.48,217.37,2.04]
[1734519001970,7.15255329,217.48,217.41,7.15255329]
[1734519002177,2.2998,217.44,217.41,9.45255329]
[1734519002369,4.3398,217.44,217.41,9.45255329]
[1734519002877,2.04,217.44,217.39,7.15255329]
[1734519004178,9.19255329,217.44,217.39,9.45285329]